Cogmind - Beta 17 @@@ ROGUE MODE // 2026.07.01 @ 03:19:30 Player: TheSkyeDoctor Result: Destroyed by P-60 Hacker with Shock Rifle Performance ------------- Evolutions (2) 1000 Regions Visited (4) 800 Robots Destroyed (51) 255 Value Destroyed (1830) 1830 Prototype IDs (2) 40 Alien Tech Used (0) 0 Bonus (7469) 7469 TOTAL SCORE: 11394 Bonus ------- High Alert Combat Kills 94 Follower Combat Kills 425 Prayed to X0-1V1 5000 Major X0-1V1 Interference 1750 Entered Garrisons 200 Cogmind --------- Core Integrity 0/850 Matter 269/300 Energy 100/100 System Corruption 35% Temperature Cool (0) Movement Core (700) Ox13 Location -8/Garrison Parts ------- > --- POWER (1) -------- (None) > --- PROPULSION (3) --- (None) > --- UTILITY (3) ------ High-capacity Storage Unit X0-1V1's Piety Tracker > --- WEAPON (4) ------- (None) > --- INVENTORY (20) --- Improved Heat Sink Small Storage Unit High-capacity Battery (250) High-capacity Matter Pod (155) Seismic Detector Matter Filter Kinecellerator Weapon Cycler Light Armor Plating Relay Coupler [NC] (28) Relay Coupler [Hunter] (16) Peak State ------------ > --- POWER ------------ Light Ion Engine > --- PROPULSION ------- Light Treads Light Treads Advanced Treads > --- UTILITY ---------- High-capacity Storage Unit Improved Targeting Computer X0-1V1's Piety Tracker > --- WEAPON ----------- Improved EM Shotgun EM Pulse Cannon Autogun Missile Launcher > --- INVENTORY -------- Light Treads Compact Wheel Improved Heat Sink Small Storage Unit High-capacity Battery High-capacity Matter Pod Seismic Detector Matter Filter Kinecellerator Weapon Cycler Light Armor Plating Hardened Medium Armor Plating Relay Coupler [NC] Relay Coupler [Hunter] Datajack Hammer [Rating: 36] Favorites ----------- Power Ion Engine Engine Ion Engine Propulsion Light Treads Treads Light Treads Leg Flexi-carbon Leg Wheel Compact Wheel Utility X0-1V1's Piety Tracker Device X0-1V1's Piety Tracker Storage High-capacity Storage Unit Processor Improved Targeting Computer Protection Hardened Medium Armor Plating Weapon Autogun Energy Gun Improved EM Shotgun Energy Cannon EM Pulse Cannon Ballistic Gun Autogun Ballistic Cannon Assault Cannon Launcher Grenade Launcher Impact Weapon Hammer Special Melee Weapon Datajack Build | -11 -10 -9 -8 -8 ------- Run | Yrd Mat Mat Mat Gar Slots Evolved 4 | . . 2 2 . Power . | . . . . . Propulsion 2 | . . 1 1 . Utility . | . . . . . Weapon 2 | . . 1 1 . Parts Attached 32 | 7 . 9 5 11 Power 3 | 1 . 1 . 1 Engine 3 | 1 . 1 . 1 Core . | . . . . . Reactor . | . . . . . Propulsion 9 | 2 . 2 1 4 Treads 5 | 2 . 2 1 . Leg 3 | . . . . 3 Wheel 1 | . . . . 1 Hover . | . . . . . Flight . | . . . . . Utility 9 | 2 . 3 1 3 Device 4 | 1 . 1 . 2 Storage 2 | 1 . 1 . . Processor 2 | . . 1 1 . Hackware . | . . . . . Protection 1 | . . . . 1 Artifact . | . . . . . Weapon 11 | 2 . 3 3 3 Energy Gun 4 | 2 . 1 . 1 Energy Cannon 1 | . . . 1 . Ballistic Gun 1 | . . 1 . . Ballistic Cannon 1 | . . . 1 . Launcher 2 | . . 1 . 1 Special Weapon . | . . . . . Impact Weapon 1 | . . . 1 . Slashing Weapon . | . . . . . Piercing Weapon . | . . . . . Special Melee Weapon 1 | . . . . 1 Unidentified Prototypes 2 | . . 2 . . Corrupted Parts 1 | . . . . 1 System Corruption 10 | . . . . 10 Parts Lost 26 | . . 4 . 22 Power 3 | . . 1 . 2 Propulsion 9 | . . 1 . 8 Utility 4 | . . . . 4 Weapon 10 | . . 2 . 8 Highest Loss Streak 7 | . . 3 . 7 To Critical Strikes . | . . . . . Average Backups 9 | 1 5 7 12 14 Power . | . 1 . . . Propulsion 1 | . 1 1 1 1 Utility 6 | . 2 4 8 11 Weapon 1 | . 1 1 1 1 Tool/Special . | . . . . . Unused Backups 10 | . . . 1 9 Power . | . . . . . Propulsion . | . . . . . Utility 10 | . . . 1 9 Weapon . | . . . . . Tool/Special . | . . . . . Average Slot Usage (%) 88 | . 100 87 98 65 Engine 9 | . 14 11 9 5 Treads 23 | . 28 23 26 13 Device 9 | . 14 11 9 5 Storage 10 | . 14 11 9 9 Processor 5 | . . 4 9 8 Energy Gun 13 | . 28 11 9 5 Energy Cannon 3 | . . . 8 2 Ballistic Gun 5 | . . 6 9 5 Ballistic Cannon 1 | . . . 4 . Launcher 3 | . . 8 3 2 Impact Weapon 1 | . . . . 3 Peak Build Rating 36 | 7 9 24 35 36 Average Rating 21 | 5 7 21 32 22 On Entrance 14 | . 7 9 24 34 Avg Prop Armor Cover (%) . | . . . . . Naked Turns . | . . . . . Heaviest Build 63 | 15 15 55 63 60 Greatest Support 62 | 40 40 60 62 62 Greatest Overweight (x) 18 | . . 1 1 18 Average Overweight (x) . | . . . . 1 Largest Inventory Capacity 20 | 8 8 20 20 20 Average Capacity 15 | 7 8 12 20 20 Most Carried 17 | 2 8 9 15 17 Average Carried 9 | 1 5 7 12 14 Final Capacity 20 | 8 8 20 20 20 Final Carried 15 | 2 8 9 15 11 Class Distribution -------------------- 51% | Mutant 48% | Gunner Dominant Class ---------------- Mutant | -10/Materials Gunner | -9/Materials Gunner | -8/Materials Mutant | -8/Garrison Resources | -11 -10 -9 -8 -8 ----------- Run | Yrd Mat Mat Mat Gar Matter Collected 1276 | 270 50 154 654 148 Remotely . | . . . . . Salvage Created 1439 | 92 219 358 411 359 Parts 74 | 6 13 22 19 14 Haulers Intercepted 2 | . 1 1 . . Recyclers Shooed 2 | 1 . 1 . . Parts Field Recycled . | . . . . . Retrieved Matter . | . . . . . Parts Self-Destructed . | . . . . . Prevented . | . . . . . Parts Restored . | . . . . . Kills | -11 -10 -9 -8 -8 ------- Run | Yrd Mat Mat Mat Gar Combat Hostiles Destroyed 39 | . 6 11 8 14 Guns 10 | . 5 3 2 . Cannons 5 | . . . 4 1 AOE 20 | . 1 8 1 10 Classes Destroyed 9 | 2 2 4 1 . Worker 2 | . . 1 1 . Tunneler 1 | 1 . . . . Hauler 2 | . 1 1 . . Recycler 3 | 1 1 1 . . Operator 2 | . . . 2 . Watcher 2 | . . 2 . . Swarmer 14 | . 6 3 2 3 Grunt 23 | . . 7 5 11 Sentry 2 | . . 1 1 . Best Kill Streak 15 | 2 4 15 3 5 Combat Bots Only 10 | . 3 10 3 5 Max Kills in Single Turn 3 | 1 2 2 1 3 Gunslinging . | . . . . . Exploded 3 | . 1 2 1 3 Melee . | . . . . . Uniques/NPCs Destroyed . | . . . . . Combat | -11 -10 -9 -8 -8 -------- Run | Yrd Mat Mat Mat Gar Hostile Shots Fired 283 | . 22 55 43 163 Missed 80 | . 3 12 18 47 Hits 203 | . 19 43 25 116 Projectile 203 | . 19 43 25 116 Critical Strikes 6 | . . . . 6 Damage Taken 3629 | . 194 622 388 2425 Core 995 | . 52 90 1 852 Absorbed by Shields . | . . . . . Core Remaining (%) 85 | 100 79 77 . . Volleys Fired 85 | 6 14 25 14 26 Largest 4 | 2 2 3 4 4 Hottest 168 | 90 90 98 168 167 Shots Fired 180 | 12 28 40 49 51 Gun 115 | 12 28 28 22 25 Cannon 32 | . . . 23 9 Launcher 33 | . . 12 4 17 Special . | . . . . . Kinetic 41 | . . 3 23 15 Thermal 48 | 6 14 20 . 8 Explosive 33 | . . 12 4 17 Electromagnetic 58 | 6 14 5 22 11 Robot Hit Streak 10 | 10 4 5 6 10 Robot Miss Streak 3 | 1 3 3 3 3 Penetration Max . | . . . . . Secondary Targets . | . . . . . Shots Hit Robots 123 | 10 14 26 25 48 Core Hits 86 | 3 9 30 25 19 Critical Kills . | . . . . . Critical Parts Destroyed 4 | . . . 1 3 Critical Strikes 9 | . . 3 3 3 Burn 3 | . . 3 . . Blast 1 | . . . 1 . Corrupt 1 | . . . 1 . Smash 4 | . . . 1 3 Melee Attacks 20 | . . . 3 17 Impact 19 | . . . 3 16 Slashing . | . . . . . Piercing . | . . . . . Sneak Attacks . | . . . . . Combat Hostiles . | . . . . . Follow-up Attacks . | . . . . . Damage Inflicted 4315 | 126 226 1389 736 1838 Guns 971 | 126 153 241 185 266 Cannons 407 | . . . 276 131 Explosions 2517 | . 73 1148 233 1063 Melee 415 | . . . 37 378 Ramming 5 | . . . 5 . Kinetic 345 | . . 25 146 174 Thermal 479 | 63 137 187 . 92 Explosive 2302 | . . 1119 120 1063 Electromagnetic 769 | 63 89 58 428 131 Impact 415 | . . . 37 378 Slashing . | . . . . . Piercing . | . . . . . Highest Corruption 35 | . . . . 35 Average Corruption 12 | . . . . 12 Corruption Purged . | . . . . . Corruption Blocked . | . . . . . Effects 14 | . . . . 14 Message Errors 3 | . . . . 3 Matter Fused 5 | . . . . 5 Energy Discharges 1 | . . . . 1 Data Loss (minor) 3 | . . . . 3 Weapon Failures 2 | . . . . 2 Overload Shots . | . . . . . Overflow Damage 213 | . . 50 37 126 Projectiles . | . . . . . Explosions 97 | . . 50 . 47 Melee 116 | . . . 37 79 Knockbacks 3 | . . . 3 . Impact 1 | . . . 1 . Kinetic 1 | . . . 1 . Secondary 1 | . . . 1 . Self-Inflicted Damage 216 | . 40 86 3 87 Shots 6 | . 1 1 1 3 Rammed . | . . . . . Targets Rammed 1 | . . . 1 . Kicked . | . . . . . Crushed 1 | . . . 1 . Highest Temperature 475 | 180 240 198 475 283 Average Temperature 105 | 92 93 51 158 121 Received Heat Transfer 1005 | . . 237 171 597 Effects 3 | . . . 3 . Shutdowns 2 | . . . 2 . Short Circuit 1 | . . . 1 . Siege Activations . | . . . . . Martial Activations . | . . . . . Shielding Activations . | . . . . . Robots Disrupted 1 | . . . 1 . Combat Hostiles 1 | . . . 1 . Robots Corrupted 4 | . . . 1 3 Combat Hostiles 4 | . . . 1 3 Parts Fried 2 | . . . 2 . Impact Corruptions 5 | . . . 1 4 Robots Melted . | . . . . . Combat Hostiles . | . . . . . Parts Melted 3 | . 2 1 . . Heat Transferred 1469 | 185 285 777 . 222 Parts Sabotaged . | . . . . . Parts Stolen . | . . . . . Parts Stripped . | . . . . . Power Chain Reactions 1 | . 1 . . . Alert | -11 -10 -9 -8 -8 ------- Run | Yrd Mat Mat Mat Gar Maximum Alert Level 2 | . . 1 2 2 Low Security (%) 63 | 100 100 58 74 . Level 1 19 | . . 41 17 29 Level 2 16 | . . . 7 70 Level 3 . | . . . . . Level 4 . | . . . . . Level 5 . | . . . . . High Security . | . . . . . Max Security . | . . . . . Peak Influence 562 | 5 81 303 455 562 Initial 249 | . . 12 124 249 Average 185 | . 22 163 196 420 Influence Increases 1900 | 10 158 509 690 533 Destroy 0b10 Robot/C 1080 | . 120 280 400 280 Destroy 0b10 Robot/NC 85 | 10 10 25 40 . Destroy Leader 186 | . 22 66 98 . Allied During Kill 88 | . . 22 66 . Successful Hack 13 | . . 9 4 . Disable Machine 90 | . . 45 45 . Anti-Garrison Action 100 | . . . . 100 Destroy Structure 183 | . 6 62 22 93 Lose Combat Pursuer 75 | . . . 15 60 Influence Decreases 1338 | 10 128 244 601 355 Entered New Map 324 | . . 18 171 135 Time Decay 644 | 10 128 196 310 . Lost Part 250 | . . 30 . 220 Lost Ally 120 | . . . 120 . Squads Dispatched 3 | . . . 3 . Investigation . | . . . . . Extermination . | . . . . . Reinforcement 3 | . . . 3 . Assault . | . . . . . Garrison . | . . . . . Intercept . | . . . . . Searches Triggered . | . . . . . Construction Impeded 1 | . . . 1 . Haulers Reinforced . | . . . . . Active Scanning Responses . | . . . . . Cargo Convoy Interrupts . | . . . . . Stealth | -11 -10 -9 -8 -8 --------- Run | Yrd Mat Mat Mat Gar Distress Signals 7 | . . 2 5 . Communications Jammed . | . . . . . Distress Signals . | . . . . . Times Spotted 79 | . 7 18 30 24 Peak Tracking Total 6 | . 3 4 6 5 Tactical Retreats 5 | . . . 1 4 Traps | -11 -10 -9 -8 -8 ------- Run | Yrd Mat Mat Mat Gar Traps Triggered . | . . . . . Indirectly . | . . . . . Trap Hack Attempts . | . . . . . Triggered . | . . . . . Disarmed . | . . . . . Reprogrammed . | . . . . . Reused . | . . . . . Traps Extracted . | . . . . . Installed . | . . . . . Triggered . | . . . . . Machines | -11 -10 -9 -8 -8 ---------- Run | Yrd Mat Mat Mat Gar Machines Disabled 8 | . . 3 3 2 Max in Single Turn 1 | . . 1 1 1 Garrison Relay 2 | . . . . 2 Machines Repaired . | . . . . . Machines Dismantled . | . . . . . Machines Sabotaged . | . . . . . Overloaded Fab Kills . | . . . . . Hacking | -11 -10 -9 -8 -8 --------- Run | Yrd Mat Mat Mat Gar Machines Accessed 3 | . . 2 1 . Terminals 2 | . . 2 . . Fabricators . | . . . . . Repair Stations . | . . . . . Recycling Units . | . . . . . Scanalyzers . | . . . . . Garrison Access 1 | . . . 1 . Total Hacks 6 | . . 5 1 . Successful 3 | . . 2 1 . Failed 3 | . . 3 . . Catastrophic . | . . . . . Database Lockouts . | . . . . . Manual 6 | . 1 5 . . Terminals 5 | . . 5 . . Fabricators . | . . . . . Repair Stations . | . . . . . Recycling Units . | . . . . . Scanalyzers . | . . . . . Garrison Access 1 | . . . 1 . Terminal Hacks . | . . . . . Fabricator Hacks . | . . . . . Repair Station Hacks . | . . . . . Recycling Unit Hacks . | . . . . . Scanalyzer . | . . . . . Garrison Access Hacks 1 | . . . 1 . Unlock Access 1 | . . . 1 . Unauthorized Hacks 2 | . . 2 . . Terminals 2 | . . 2 . . Botnet 2 | . . 2 . . Fabricators . | . . . . . Repair Stations . | . . . . . Recycling Units . | . . . . . Scanalyzers . | . . . . . Garrison Access . | . . . . . Data Cores Recovered 1 | . . . 1 . Used . | . . . . . Hacking Detections 1 | . . 1 . . Full Trace Events . | . . . . . Feedback Events . | . . . . . Feedback Blocked . | . . . . . Robot Schematics Acquired . | . . . . . Robots Built . | . . . . . Authchips . | . . . . . Time . | . . . . . Total Robot Build Rating . | . . . . . Part Schematics Acquired . | . . . . . Parts Built . | . . . . . Authchips . | . . . . . Time . | . . . . . Total Part Build Rating . | . . . . . Part Studies Acquired . | . . . . . Parts Repaired . | . . . . . Time . | . . . . . Parts Recycled . | . . . . . Recycled Matter . | . . . . . Retrieved Matter . | . . . . . Retrieved Components . | . . . . . Parts Scanalyzed . | . . . . . Part Schematics Acquired . | . . . . . Parts Damaged . | . . . . . Bothacking | -11 -10 -9 -8 -8 ------------ Run | Yrd Mat Mat Mat Gar Used RIF Installer . | . . . . . Robots Hacked . | . . . . . Non-combat . | . . . . . Combat . | . . . . . Robot Hacks Applied . | . . . . . Relay Couplers Released 9 | . . . . 9 Machine Destruction 9 | . . . . 9 Fabnet Peak Effective % . | . . . . . Robots Rewired . | . . . . . Allies Hacked . | . . . . . Hacks Repelled . | . . . . . Allies | -11 -10 -9 -8 -8 -------- Run | Yrd Mat Mat Mat Gar Total Allies 6 | . . 3 3 . Largest Group 3 | . . 3 3 . Highest-Rated Group 63 | . . 63 63 . Highest-Rated Ally 21 | . . 21 21 . Total Orders . | . . . . . Ally Attacks 87 | . . 8 79 . Total Damage 1387 | . . 124 1263 . Kills 20 | . . 3 17 . Allies Corrupted . | . . . . . Allies Melted . | . . . . . X0-1V1 Amusement Gains 119 | . 18 5 10 86 Good Acts 9 | . . 1 5 3 Bad Acts 9 | . . 3 . 6 Intel | -11 -10 -9 -8 -8 ------- Run | Yrd Mat Mat Mat Gar Active Infowar (turns) 549 | 59 490 . . . Seismic 549 | 59 490 . . . Robot Analysis Total . | . . . . . Derelict Logs Recovered . | . . . . . Drone Launches . | . . . . . Drone Recoveries . | . . . . . Exploration | -11 -10 -9 -8 -8 ------------- Run | Yrd Mat Mat Mat Gar Turns Passed 2242 | 148 490 449 688 467 Spaces Moved 991 | 79 274 197 293 148 Core 12 | 7 . . . 5 Treads 955 | 72 274 197 293 119 Legs 22 | . . . . 22 Wheels 2 | . . . . 2 Hover . | . . . . . Flight . | . . . . . Fastest Speed 50 | 50 160 160 155 145 Average Speed 187 | 150 160 189 206 216 Slowest Speed 950 | 160 160 240 240 950 Overloaded Moves . | . . . . . Propulsion Burnouts . | . . . . . Robots Hopped . | . . . . . Potential Cave-ins 18 | . . . . 18 Cave-ins Triggered 2 | . . . . 2 Exploration Rate (%) 27 | 5 38 25 34 33 Regions Visited 4 Branch Regions . Pre-discovered Areas . | . . . . . Known Exits Taken 1 | . . . 1 . Unknown Exits Taken 3 | 1 1 1 . . Scrap Searched . | . . . . . Spaces Dug 1 | . . . 1 . Terrain Destroyed 185 | . 5 84 17 79 Melee 1 | . . . 1 . Projectile 2 | . . . 2 . AOE 182 | . 5 84 14 79 Terrain Rammed . | . . . . . Walls Destroyed . | . . . . . Machines Disabled . | . . . . . Actions | -11 -10 -9 -8 -8 --------- Run | Yrd Mat Mat Mat Gar Total 1182 | 93 298 234 338 219 Wait 25 | . 5 2 10 8 Move 985 | 78 273 196 292 146 Hop . | . . . . . Pick Up 19 | 2 6 2 7 2 Fast Attach 19 | 7 . 3 2 7 Attach 13 | . . 3 2 8 Detach 4 | . . . 2 2 Swap 7 | . . 3 3 1 Drop 2 | . . . 2 . Fire 85 | 6 14 25 14 26 Melee 20 | . . . 3 17 Ram . | . . . . . Kick . | . . . . . Crush 1 | . . . 1 . Escape Stasis 2 | . . . . 2 Rewire . | . . . . . Trap . | . . . . . Miscellaneous . | . . . . . Route ------- -11/Scrapyard -10/Materials (discovered 2 exits: *Mat / [*Sub]) -9/Materials -8/Materials (discovered 2 exits: [*Fac] / Gar) -8/Garrison History --------- Turn | Location | Event 6 | -11/Scrapyard | Discovered new exit (range 16) 149 | -11/Scrapyard | Entered Materials 302 | -10/Materials | Build established: Mutant 419 | -10/Materials | Discovered new exit (range 16) 516 | -10/Materials | Discovered new exit (range 8) 561 | -10/Materials | Prayed at D.C.S.S. Altar Unit 639 | -10/Materials | Entered another Materials area 639 | -9/Materials | Evolved 2 slots: Propulsion x1, Weapon x1 786 | -9/Materials | Destroyed 10 combat bots 792 | -9/Materials | Lost 3 parts (1p1n1w) 895 | -9/Materials | X0-1V1 sent you to a vault 905 | -9/Materials | X0-1V1 mutated your Propulsion slot to Utility slot 1036 | -9/Materials | Discovered new exit (range 12) 1088 | -9/Materials | Entered another Materials area 1088 | -8/Materials | Accompanied by 3 allies 1088 | -8/Materials | Evolved 2 slots: Propulsion x1, Weapon x1 1135 | -8/Materials | Build established: Gunner 1188 | -8/Materials | Core integrity permanently improved by X0-1V1 (+300) 1437 | -8/Materials | Discovered new exit (range 7) 1686 | -8/Materials | X0-1V1 sent allied Y-45 Defender (x3) 1774 | -8/Materials | Identified exit to Garrison 1776 | -8/Materials | Entered Garrison 1800 | -8/Garrison | Lost 3 allies 1808 | -8/Garrison | Triggered checkpoint 1839 | -8/Garrison | X0-1V1 vaporized surrounding terrain (radius 21) 1857 | -8/Garrison | Garrison Relay disabled 1881 | -8/Garrison | X0-1V1 sent you into danger 1887 | -8/Garrison | Triggered checkpoint 1917 | -8/Garrison | Crushed by falling debris 1948 | -8/Garrison | Lost 4 parts (1n1u2w) 2045 | -8/Garrison | X0-1V1 sent you into danger 2059 | -8/Garrison | X0-1V1 upgraded hostiles (x2) 2098 | -8/Garrison | Triggered checkpoint 2106 | -8/Garrison | Lost 6 parts (1p3n1u1w) 2117 | -8/Garrison | Core integrity fell below 50% 2137 | -8/Garrison | System corruption reached 10% 2173 | -8/Garrison | Lost 3 parts (1n1u1w) 2191 | -8/Garrison | Crushed by falling debris 2201 | -8/Garrison | Garrison Relay disabled 2204 | -8/Garrison | System corruption reached 30% 2229 | -8/Garrison | Core integrity fell below 20% 2235 | -8/Garrison | Build established: Mutant 2243 | -8/Garrison | Destroyed by P-60 Hacker with Shock Rifle Last Messages --------------- 02211_ The unstable cave ceiling collapses. 02213_ Acquired X0-1V1's Piety Tracker. 02213_ P-60 Hacker resets P-60 Hacker, system corruption cleaned. 02215_ The unstable cave ceiling collapses. 02215_ Datajack destroyed. 02218_ The unstable cave ceiling collapses. 02218_ P-60 Hacker crushed by falling debris. 02224_ The unstable cave ceiling collapses. 02225_ System corrupted: Matter fused (-7). 02227_ P-60 Hacker resets P-60 Hacker, system corruption cleaned. 02229_ The unstable cave ceiling collapses. 02235_ Machine disabled. 02237_ P-60 Hacker resets P-60 Hacker, system corruption cleaned. 02239_ The unstable cave ceiling collapses. 02239_ P-60 Hacker crushed by falling debris. 02241_ System corrupted: Matter fused (-6). 02243_ X0-1V1 laughs nastily! Map ----- +----------------------------------------------------+ | ?????????? " " #??????????? | | ????????# " " #????#????? | | ???????? " " #?? #????? | | ??????? " " ## #????? | | ???????? " " ## #????? | | ???????? " " # ###??? | | ???????? " " #??? | | ??????? " " #??? | | ??????"""""""""" " " # #??? | | ??????"""""""""" " # #??? | | ?????"""!!!!!!"" " ### #???? | | ????""" " " #???? | | ????""! " """!""; ; # #???? | | ????""! ; "" ""; ; # "#???? | | ????""! ;;"; !;;;;#; ;; ## # # ###?? | | ????""! #?? | | ?????"" # #?? | | ?????"""!!!!!! ;;;;;;;;;;;; ;;^^^;;"" """" #?? | | ?????""""""""""; ; = ;; ; " " " #?? | | ????????""";;;;; ;; ;;; ; " " " ### | | ???????? ; ; ; ; " " " | | ??????? ; ; ; ; ; " " ### | | ??????? ;;;;;; ; ; # " " #?? | | ?????? ;"T ;; ;;; # "#####" | | ?????? ; ^ # | | ?????? ;;@;;;;;;; | | ????? #pp ; | | ?????# ; # ## # ## | | ?????# ## # # ## #?? | | ??????# ## # # # | | ???????# # # | | ???????## ## # | | ????????## # # = # # | | ?????????## ## #[ ####### ## | | ??????????### ## ## ###?????? #? | | ???????????# ! ! " # ###???????? ? | | ?????????? + ! # " ##?????????? | | ?????????+##+#### ###;### # ###???????? | | ??????????? ? #????????? ##" | | ??????????#????########### # # #??????????#?? | | ?????????????????????????# # * ##????????????? | | ?????????????????????????## ## ??????????? | | ??????????????????????????# # ### #????????? | | ??????????????????????????# # #???????????? | | ??????????????????????????# # % #???????????? | | ??????????????????????????# #### #???????????? | | ?????????????????????????? ? ???????????? | | ?????????????????????????###? ??????????? | | ????????????????????????????# ########?????????? | | ???????????????????????????? ?????????????????? | +----------------------------------------------------+ Best States ------------- Heat Dissipation 31 Energy Generation 10 Energy Capacity 250 Matter Stores 300 Matter Capacity 300 Sight Range 16 Terrain Scan Density 10 Armor Coverage 225 Evasion (%) 40 Targeting Accuracy 6 Recoil Reduction 3 Item Schematics ----------------- None Robot Schematics ------------------ None Fabricated ------------ Nothing Repaired ---------- Nothing Studied --------- None Alien Tech Used ----------------- None Achievements -------------- None Challenges ------------ None Game ------ Seed RecoilReflectiveLeg Manual? 0 Play Time 00:17:06 Cumulative 105.8 hours Start 2026.07.01 @ 03:03:34 End 2026.07.01 @ 03:19:30 Sessions 1 Manual Loads 0 Difficulty Rogue Special Mode None Game No. 230 Rogue 230 Adventurer 0 Explorer 0 Win Type - Total 0 Types 0/0/0/0/0/0/0/0/0/0 Lore% 48 Gallery% 49 Achievement% 39 Wizard Run 0 Options --------- Layout 2 ASCII 0 Keyboard 1 Movement Arrows Keybinds 0 Fullscreen 1 Font 24/Smallcaps Map View 50x44 Zoom Use 0% Tactical HUD 1 Map Filters NONE Filters NONE Steam 1 RUN: e814bb4f-ee34-4950-83a1-51145a064792